Workbook

Sheet NSU
B1: Paula Lahjalahti | E1: 27.8.1973
B2: SUPERPESIS | E2: Runkosarja | I2: Kärkilyönnit (KL), pesänvälit | P2: Ylempi loppusarja | U2: Alempi loppusarja | Z2: Arvo-ottelut ja mitalit | AF2: Runkosarjan jälkeen
B3: Vuosi | C3: Sija | D3: Seura | E3: OTT | F3: KUN | G3: LÖI | H3: TOI | I3: KL | J3: 0 > 1 | K3: 1 > 2 | L3: 2 > 3 | M3: 3 > k | N3: KL-% | P3: OTT | Q3: KUN | R3: LÖI | S3: TOI | T3: KL | U3: OTT | V3: KUN | W3: LÖI | X3: TOI | Y3: KL | Z3: IL | AA3: LL | AB3: Halli | AC3: K | AD3: H | AE3: P
B4: 1990 | D4: KaMa | F4: suomensarja
B5: 1991 | D5: KaMa | F5: ykkössarja
B6: 1992 | D6: KaMa | F6: ykköspesis
B7: 1993 | C7: 8. | D7: IT | E7: 24 | F7: 2 | G7: 11 | H7: 31 | I7: 116 | J7: 34 | K7: 40 | L7: 29 | M7: 13 | N7: 56.6 % | O7: =PRODUCT(I7/N7) -> 204.9469965 | AF7: play off
B8: 1994 | C8: 8. | D8: IT | E8: 24 | F8: 2 | G8: 18 | H8: 11 | I8: 86 | J8: 12 | K8: 30 | L8: 24 | M8: 20 | N8: 54.2 % | O8: =PRODUCT(I8/N8) -> 158.6715867 | AF8: puolivälierät
B9: 1995 | C9: 9. | D9: IT | E9: 22 | F9: 3 | G9: 21 | H9: 10 | I9: 84 | J9: 17 | K9: 16 | L9: 27 | M9: 24 | N9: 51.5 % | O9: 163.1067961
B10: 1996 | C10: 12. | D10: IT | E10: 24 | F10: 2 | G10: 17 | H10: 20 | I10: 102 | J10: 19 | K10: 33 | L10: 31 | M10: =PRODUCT(F10+G10) -> 19 | N10: 54.0 % | O10: 188.8888889
B11: 1997 | C11: 5. | D11: ViPa | E11: 24 | F11: 0 | G11: 10 | H11: 20 | I11: 76 | J11: 25 | K11: 22 | L11: 19 | M11: =PRODUCT(F11+G11) -> 10 | N11: 53.5 % | O11: 142.0560748 | AB11: 1 | AF11: play off
B12: 1998 | C12: 1. | D12: ViPa | E12: 22 | F12: 0 | G12: 3 | H12: 6 | I12: 44 | J12: 17 | K12: 12 | L12: 12 | M12: =PRODUCT(F12+G12) -> 3 | N12: 34.1 % | O12: 129.0322581 | AC12: 1 | AF12: play off
B13: 1999 | C13: 5. | D13: Kiri | E13: 22 | F13: 3 | G13: 36 | H13: 17 | I13: 79 | J13: 8 | K13: 14 | L13: 18 | M13: =PRODUCT(F13+G13) -> 39 | N13: 48.8 % | O13: 161.8852459 | P13: 3 | Q13: 0 | R13: 1 | S13: 1 | T13: 2 | Z13: 1 | AF13: play off
B14: 2000 | C14: 8. | D14: Kiri | E14: 22 | F14: 3 | G14: 13 | H14: 17 | I14: 84 | J14: 24 | K14: 19 | L14: 25 | M14: =PRODUCT(F14+G14) -> 16 | N14: 54.2 % | O14: 154.9815498 | P14: 4 | Q14: 0 | R14: 5 | S14: 0 | T14: 14 | AF14: play off
B15: Yhteensä | E15: =SUM(E7:E14) -> 184 | F15: 15 | G15: 129 | H15: 132 | I15: 671 | J15: 156 | K15: 186 | L15: 185 | M15: 144 | N15: =PRODUCT(I15/O15) -> 51.5 % | O15: =SUM(O7:O14) -> 1303.569397 | P15: 7 | Q15: 0 | R15: 6 | S15: 1 | T15: 16 | U15: 0 | V15: 0 | W15: 0 | X15: 0 | Y15: 0 | Z15: 1 | AA15: 0 | AB15: 1 | AC15: 1 | AD15: 0 | AE15: 0
B16: Pesispörssi | D16: =SUM(F15:H15)+((I15-F15-G15)/3)+(E15/3)+(Z15*25)+(AA15*25)+(AB15*10)+(AC15*25)+(AD15*20)+(AE15*15) -> 573.0
B18: URA SUPERISSA | E18: OTT | F18: KUN | G18: LÖI | H18: TOI | I18: KL | K18: ka/L | L18: ka/T | M18: ka/KL | N18: K - % | P18: ENSIMMÄISET
B19: Runkosarja | E19: =PRODUCT(E15) -> 184 | F19: =PRODUCT(F15) -> 15 | G19: =PRODUCT(G15) -> 129 | H19: =PRODUCT(H15) -> 132 | I19: =PRODUCT(I15) -> 671 | K19: =PRODUCT((F19+G19)/E19) -> 0.78 | L19: =PRODUCT(H19/E19) -> 0.72 | M19: =PRODUCT(I19/E19) -> 3.65 | N19: =PRODUCT(N15) -> 51.5 % | O19: =PRODUCT(O15) -> 1303.569397 | P19: Ottelu | S19: 02.05. 1993 YJ - IT 6-7 | AD19: 1. ottelu | AF19: 19 v 8 kk 5 pv
B20: Ylempi loppusarja | E20: =PRODUCT(P15) -> 7 | F20: =PRODUCT(Q15) -> 0 | G20: =PRODUCT(R15) -> 6 | H20: =PRODUCT(S15) -> 1 | I20: =PRODUCT(T15) -> 16 | K20: =PRODUCT((F20+G20)/E20) -> 0.86 | L20: =PRODUCT(H20/E20) -> 0.14 | M20: =PRODUCT(I20/E20) -> 2.29 | N20: 38.1 % | O20: 42 | P20: Lyöty juoksu | S20: 09.05. 1993 IT - ViU 2-4 | AD20: 2. ottelu | AF20: 19 v 8 kk 12 pv
B21: Alempi loppusarja | O21: 0 | P21: Tuotu juoksu | S21: 02.05. 1993 YJ - IT 6-7 | AD21: 1. ottelu | AF21: 19 v 8 kk 5 pv
B22: KAIKKI | E22: =SUM(E19:E21) -> 191 | F22: =SUM(F19:F21) -> 15 | G22: =SUM(G19:G21) -> 135 | H22: =SUM(H19:H21) -> 133 | I22: =SUM(I19:I21) -> 687 | K22: =PRODUCT((F22+G22)/E22) -> 0.79 | L22: =PRODUCT(H22/E22) -> 0.70 | M22: =PRODUCT(I22/E22) -> 3.60 | N22: =PRODUCT(I22/O22) -> 51.1 % | O22: =SUM(O19:O21) -> 1345.569397 | P22: Kunnari | S22: 06.07. 1993 IT - Tahko 12-4 | AD22: 15. ottelu | AF22: 19 v 10 kk 9 pv
B24: Seurat | D24: KaMa = Kankaanpään Maila (1958)
D25: IT = Ikaalisten Tarmo (1908)
D26: ViPa = Vihdin Pallo (1967)
D27: Kiri = Jyväskylän Kiri (1930)

Sheet Arvo-ottelut
B1: ITÄ - LÄNSI - KORTTI
B2: Paula Lahjalahti | C2: 27.8.1973
B3: NAISET | C3: Itä - Länsi, tulos | D3: Joukkue | E3: Seura | G3: V | H3: T | I3: H | J3: Up. | K3: Lj. | L3: Palk. | M3: O | N3: K | O3: L | P3: T | Q3: KL | R3: 1 | S3: 2 | T3: 3 | U3: k | V3: KL-% | W3: Pelinjohtaja | X3: Yleisöä
B4: 03.07. 1999 Sotkamo | C4: 2-0 (1-0, 4-3) | D4: Itä | E4: Kirittäret | G4: 1 | K4: jok | M4: 1 | O4: 1 | Q4: 1/6 | T4: 0/2 | U4: 1/4 | V4: 16.7 % | W4: Vesa Tervo | X4: 3123
B5: Ikä ensimmäisessä ottelussa | C5: 25 v 10 kk 6 pv
B7: B-TYTÖT | C7: Itä - Länsi, tulos | D7: Joukkue | E7: Seura | G7: V | H7: T | I7: H | J7: Up. | K7: Lj. | L7: Palk. | M7: O | N7: K | O7: L | P7: T | Q7: KL | R7: 1 | S7: 2 | T7: 3 | U7: k | V7: KL-% | W7: Pelinjohtaja | X7: Yleisöä
B8: 07.07. 1990 Vihti | C8: 4-9 | D8: Länsi | G8: 1 | K8: jok | M8: 1 | Q8: 1/2 | R8: 0/1 | S8: 1/1 | V8: 50.0 % | W8: Petri Kaijansinkko | X8: 111
